Cogmind - Beta 16 @@@ ROGUE MODE // 2025.12.09 @ 06:52:08 Player: shapeshifter Result: Heading to fleet! Performance ------------- Evolutions (9) 4500 Regions Visited (26) 5200 Robots Destroyed (199) 995 Value Destroyed (7804) 7804 Prototype IDs (227) 4540 Alien Tech Used (9) 1800 Bonus (33380) 33380 TOTAL SCORE: 58219 Bonus ------- Triggered Max Security 2000 High Alert Combat Kills 2108 Follower Combat Kills 848 Awakened Behemoth Slayer 1000 Met Data Miner 300 Used Data Conduit 3000 Met Imprinter 300 Found Hidden Lab 3000 Decrypted A0 Command 3000 Used Core Reset Matrix 3000 Scanned by Researcher 500 Pursued by Intercept 500 Integrated Exoskeleton 5000 Recovered Sigix Corpse 6000 Win 3000 Friendly Fire -176 Cogmind --------- Core Integrity 393/1600 Matter 300/300 Energy 448/450 System Corruption 4% Temperature Cool (27) Movement Walking (30) Location To Fleet Rendezvous Parts ------- > --- POWER (1) -------- Quantum Reactor > --- PROPULSION (3) --- Sigix Exoskeleton > --- UTILITY (5) ------ Improved Targeting Computer Advanced Target Analyzer > --- WEAPON (2) ------- Sigix Sheargun Sigix Sheargun > --- INVENTORY (5) ---- Advanced Coolant Injector CR-A16's Behemoth Slayer Sigix Corpse Sigix Corpse Sigix Corpse Peak State ------------ > --- POWER ------------ Quantum Reactor > --- PROPULSION ------- Sigix Exoskeleton > --- UTILITY ---------- Advanced Coolant Injector Improved Targeting Computer Advanced Target Analyzer Quantum Capacitor > --- WEAPON ----------- Sigix Sheargun Sigix Sheargun > --- INVENTORY -------- Subatomic Replicator CR-A16's Behemoth Slayer Sigix Corpse Sigix Corpse [Rating: 227] Favorites ----------- Power Deuterium Engine Engine Deuterium Engine Power Core Light Nuclear Core Reactor Light Quantum Reactor Propulsion Light Treads Treads Light Treads Leg Sigix Exoskeleton Hover Unit Gyrokinetic Inverter Flight Unit Improved Cesium-ion Thruster Utility Improved Heat Sink Device Improved Heat Sink Storage Large Storage Unit Processor Improved Melee Analysis Suite Hackware Hacking Suite Protection Hardened Medium Armor Plating Artifact LC Capacitor Weapon Ion Cannon Energy Gun Sigix Sheargun Energy Cannon Ion Cannon Ballistic Gun Improved Assault Rifle Ballistic Cannon Slug Cannon Launcher Proton Missile Launcher Special Weapon Remote Datajack Impact Weapon Thunder Hammer Slashing Weapon Ionic Axe Piercing Weapon Spear Build | -11 -10 -10 -9 -9 -8 -7 -7 -7 -7 -7 -7 -6 -6 -6 -6 -6 -5 -5 -4 -4 -4 -3 -2 -2 -2 -1 ------- Run | Yrd Mat Min Mat Min Mat Fac Was Fac Low Low Dat Pro Fac Low Low Zio Pro Fac Fac Arm Lab Res Res Qua Sec Acc Slots Evolved 18 | . . . 2 . 2 2 . . . . . . 2 . . . . 2 2 . . 2 2 . . 2 Power 1 | . . . . . . . . . . . . . 1 . . . . . . . . . . . . . Propulsion 7 | . . . 1 . 1 1 . . . . . . 1 . . . . 1 1 . . 1 . . . . Utility 8 | . . . 1 . 1 1 . . . . . . . . . . . 1 1 . . 1 . . . 2 Weapon 2 | . . . . . . . . . . . . . . . . . . . . . . . 2 . . . Parts Attached 195 | 7 11 1 21 . 18 24 6 16 . 2 1 1 4 3 . 3 2 11 1 15 7 12 13 5 1 10 Power 26 | 1 . . 3 . 3 . . 1 . 1 1 . 2 . . . 1 2 . 5 . 2 3 1 . . Engine 10 | 1 . . 2 . 1 . . 1 . . 1 . 2 . . . . 2 . . . . . . . . Core 8 | . . . 1 . 2 . . . . 1 . . . . . . . . . 3 . . 1 . . . Reactor 8 | . . . . . . . . . . . . . . . . . 1 . . 2 . 2 2 1 . . Propulsion 71 | 2 2 . 11 . 8 14 1 6 . . . . 1 . . 1 . 3 1 7 1 5 8 . . . Treads 26 | 2 2 . 10 . 7 5 . . . . . . . . . . . . . . . . . . . . Leg . | . . . . . . . . . . . . . . . . . . . . . . . . . . . Wheel . | . . . . . . . . . . . . . . . . . . . . . . . . . . . Hover 24 | . . . . . . 8 1 2 . . . . . . . . . . . 4 . 2 7 . . . Flight 21 | . . . 1 . 1 1 . 4 . . . . 1 . . 1 . 3 1 3 1 3 1 . . . Utility 63 | 2 5 1 3 . 5 6 3 6 . 1 . 1 1 3 . 1 . 6 . 1 2 4 2 3 . 7 Device 26 | 1 4 . 2 . 2 . 1 2 . 1 . . . 2 . 1 . 3 . 1 . 1 1 1 . 3 Storage 6 | 1 1 1 1 . . 1 . . . . . . . . . . . . . . . 1 . . . . Processor 15 | . . . . . 1 1 . 4 . . . . 1 1 . . . 1 . . . . . 2 . 4 Hackware 9 | . . . . . . 3 . . . . . 1 . . . . . 2 . . . 2 1 . . . Protection 6 | . . . . . 2 1 2 . . . . . . . . . . . . . 1 . . . . . Artifact 1 | . . . . . . . . . . . . . . . . . . . . . 1 . . . . . Weapon 35 | 2 4 . 4 . 2 4 2 3 . . . . . . . 1 1 . . 2 4 1 . 1 1 3 Energy Gun 4 | . . . . . . 1 . . . . . . . . . . . . . . 2 . . . . 1 Energy Cannon 10 | . 2 . 4 . 2 2 . . . . . . . . . . . . . . . . . . . . Ballistic Gun 4 | 2 2 . . . . . . . . . . . . . . . . . . . . . . . . . Ballistic Cannon 1 | . . . . . . . 1 . . . . . . . . . . . . . . . . . . . Launcher 4 | . . . . . . . . 1 . . . . . . . . . . . 1 . 1 . . . 1 Special Weapon 4 | . . . . . . 1 . . . . . . . . . . . . . 1 1 . . . . 1 Impact Weapon 1 | . . . . . . . . . . . . . . . . . . . . . 1 . . . . . Slashing Weapon 3 | . . . . . . . 1 . . . . . . . . 1 . . . . . . . 1 . . Piercing Weapon 4 | . . . . . . . . 2 . . . . . . . . 1 . . . . . . . 1 . Special Melee Weapon . | . . . . . . . . . . . . . . . . . . . . . . . . . . . Unidentified Prototypes 22 | . 1 . 3 . 1 2 2 1 . . . . . . . 1 . . . . 6 1 1 1 1 1 Parts Lost 59 | . 2 . 2 . 1 . . 3 . 1 1 . . . 1 . 5 1 1 7 . 10 12 7 4 1 Power 10 | . . . . . 1 . . 1 . . . . . . . . 2 . 1 1 . 1 2 1 . . Propulsion 28 | . 1 . 1 . . . . 2 . . . . . . 1 . 2 . . 4 . 7 7 2 1 . Utility 16 | . 1 . 1 . . . . . . 1 1 . . . . . 1 1 . 1 . 1 3 2 2 1 Weapon 5 | . . . . . . . . . . . . . . . . . . . . 1 . 1 . 2 1 . Highest Loss Streak 7 | . 1 . 1 . 1 . . 1 . 1 1 . . . 1 . 4 1 1 3 . 6 7 6 3 1 To Critical Strikes . | . . . . . . . . . . . . . . . . . . . . . . . . . . . Average Backups 14 | 4 9 10 17 18 19 17 15 14 14 14 14 15 14 13 14 13 12 13 11 13 11 13 8 6 3 2 Power . | . 1 . . . . 1 1 1 2 1 2 2 1 1 1 1 . . . . . . . . . . Propulsion 2 | 1 . 1 4 4 3 4 5 4 1 1 1 1 . . . . . . 1 . . 1 . . . . Utility 6 | 1 5 3 5 8 8 7 5 6 7 8 8 9 8 8 8 8 8 7 5 6 5 4 3 2 . . Weapon 3 | . 2 4 6 6 6 2 1 1 2 2 2 2 2 3 4 3 3 3 4 4 2 3 2 1 . 1 Tool/Special . | . . . . . . . . . . . . . . . . . . . . . . . . . . . Unused Backups 68 | . 7 6 4 . 11 12 4 8 1 . . . 3 . 1 1 . . . 6 2 . . . 1 1 Power 4 | . . 1 . . 1 . . . 1 . . . 1 . . . . . . . . . . . . . Propulsion 10 | . 2 . . . 2 6 . . . . . . . . . . . . . . . . . . . . Utility 33 | . 4 3 . . 6 2 2 5 . . . . 2 . . . . . . 5 2 . . . 1 1 Weapon 18 | . 1 1 4 . 2 4 1 2 . . . . . . 1 1 . . . 1 . . . . . . Tool/Special 3 | . . 1 . . . . 1 1 . . . . . . . . . . . . . . . . . . Average Slot Usage (%) 90 | . 94 100 97 100 99 98 100 99 100 99 98 97 97 99 92 94 78 74 82 77 74 77 45 53 37 55 Engine 5 | . 14 14 7 . 2 7 7 7 7 2 2 7 10 13 13 13 2 3 5 . . . . . . . Core 2 | . . . 3 11 6 . . . . 4 4 . . . . . . . . 3 1 . . . . . Reactor 1 | . . . . . . . . . . . . . . . . . 3 5 5 3 3 7 4 3 . 7 Treads 16 | . 23 28 32 33 35 18 . . . . . . . . . . . . . . . . . . . . Hover 7 | . . . . . . 18 38 31 . . . . . . . . . . . 4 19 12 15 16 6 . Flight 7 | . . . . . . . . 5 38 38 38 38 40 40 36 39 29 30 25 24 16 18 2 . . . Device 12 | . 13 14 20 22 16 7 6 5 7 12 11 7 3 5 6 6 4 4 14 12 3 7 4 10 6 9 Storage 8 | . 14 14 11 11 9 7 7 7 7 7 7 7 6 6 6 6 6 5 5 5 5 4 4 4 . . Processor 5 | . . . . . 3 6 . 9 23 16 15 15 16 19 20 20 15 13 10 10 10 1 . 4 5 11 Hackware 3 | . . . . . . 14 23 14 . . . 4 6 . . . . 1 5 5 4 5 7 4 2 . Protection 1 | . . . . . 7 1 . . . . 1 . . . . . . . . . . 1 1 3 . . Energy Cannon 11 | . 16 26 22 22 18 14 4 . . . . . . . . . . . . . . . . . . . Ballistic Gun 1 | . 11 1 . . . . . . . . . . . . . . . . . . . . . . . . Slashing Weapon 1 | . . . . . . . 5 6 . . . . 3 6 6 6 9 6 5 5 3 3 . . . . Piercing Weapon 1 | . . . . . . . . 3 15 15 15 15 8 6 2 1 3 1 5 . . . . . 1 . Peak Build Rating 227 | 8 13 14 25 24 32 55 61 62 57 58 62 60 70 70 70 78 71 91 101 110 150 178 148 163 203 227 Average Rating 53 | 5 10 13 22 24 28 47 58 58 56 57 58 58 68 69 65 67 59 73 99 97 105 166 103 119 120 214 On Entrance 67 | . 8 13 14 24 24 28 54 60 56 57 58 56 60 70 70 62 71 59 86 98 98 150 127 108 98 203 Avg Prop Armor Cover (%) 5 | . . . . . . . . 2 . . . . . . . 2 9 . . 9 11 7 7 . . . Naked Turns . | . . . . . . . . . . . . . . . . . . . . . . . . . . . Heaviest Build 80 | 14 24 34 62 59 70 66 44 42 34 33 34 33 37 31 31 31 45 47 49 53 70 80 66 63 40 40 Greatest Support 140 | 40 40 40 63 60 80 140 57 60 35 35 35 35 41 38 36 37 39 48 57 57 40 49 88 76 60 60 Greatest Overweight (x) 3 | . 1 . 1 . 1 1 . 1 1 . . . . . . . 2 1 . 3 1 2 1 . . . Average Overweight (x) . | . . . . . . . . . . . . . . . . . . . . . . . . . . . Largest Inventory Capacity 20 | 8 10 15 20 20 20 20 15 15 15 15 15 15 15 15 15 15 15 15 15 15 15 15 10 10 10 5 Average Capacity 15 | 7 9 12 18 20 20 17 15 15 15 15 15 15 15 15 15 15 15 15 15 15 15 14 10 10 5 5 Most Carried 20 | 8 10 12 20 19 20 20 15 15 15 15 15 15 15 15 15 15 15 15 15 15 15 15 10 10 10 5 Average Carried 14 | 4 9 10 17 18 19 17 14 14 14 13 14 15 14 14 15 14 13 14 12 14 12 14 8 7 5 4 Final Capacity 20 | 8 10 15 20 20 20 15 15 15 15 15 15 15 15 15 15 15 15 15 15 15 15 10 10 10 5 5 Final Carried 20 | 7 10 12 18 19 20 15 15 14 15 14 15 15 15 15 15 15 13 15 14 15 15 10 5 9 5 5 Class Distribution -------------------- 30% | Scavenger-Mutant 23% | Mutant 19% | Hacker-Mutant 13% | Sprinter 4% | Gladiator 4% | Alien-Sigix Dominant Class ---------------- Mutant | -10/Materials Mutant | -10/Mines Scavenger-Mutant | -9/Materials Scavenger-Mutant | -9/Mines Scavenger-Mutant | -8/Materials Hacker-Mutant | -7/Factory Hacker-Mutant | -7/Waste Hacker-Mutant | -7/Factory Gladiator | -7/Lower Caves Sprinter | -7/Lower Caves Sprinter | -7/Data Miner Sprinter | -6/Proximity Caves Sprinter | -6/Factory Sprinter | -6/Lower Caves Sprinter | -6/Lower Caves Sprinter | -6/Zion Gladiator | -5/Proximity Caves Mutant | -5/Factory Sprinter | -4/Factory Sprinter | -4/Armory Sprinter | -4/Lab Hacker-Mutant | -3/Research Hacker-Mutant | -2/Research Hacker-Mutant | -2/Quarantine Hacker-Mutant | -2/Section 7 Alien-Sigix | -1/Access Resources | -11 -10 -10 -9 -9 -8 -7 -7 -7 -7 -7 -7 -6 -6 -6 -6 -6 -5 -5 -4 -4 -4 -3 -2 -2 -2 -1 ----------- Run | Yrd Mat Min Mat Min Mat Fac Was Fac Low Low Dat Pro Fac Low Low Zio Pro Fac Fac Arm Lab Res Res Qua Sec Acc Matter Collected 3599 | 346 218 77 269 9 204 183 280 358 75 45 20 39 . 110 . 10 110 125 55 329 . 122 124 231 63 197 Remotely . | . . . . . . . . . . . . . . . . . . . . . . . . . . . Salvage Created 9656 | 197 623 32 1432 . 1754 354 . 591 . 212 20 . . . . . 248 413 137 359 . 182 124 101 63 2814 Parts 485 | 15 32 4 88 . 70 17 . 30 . 8 4 . . . . . 19 18 4 23 . 8 10 3 3 129 Haulers Intercepted 12 | . 2 . 1 . 2 1 . 1 . . . . . . . . . 2 1 . . . . . . 2 Recyclers Shooed 1 | . . . . . . . . . . . . . . . . . . . . . . . 1 . . . Parts Field Recycled . | . . . . . . . . . . . . . . . . . . . . . . . . . . . Retrieved Matter . | . . . . . . . . . . . . . . . . . . . . . . . . . . . Parts Self-Destructed 38 | . . . . . . . . . . 8 . . . 6 3 . 21 . . . . . . . . . Prevented . | . . . . . . . . . . . . . . . . . . . . . . . . . . . Parts Restored . | . . . . . . . . . . . . . . . . . . . . . . . . . . . Kills | -11 -10 -10 -9 -9 -8 -7 -7 -7 -7 -7 -7 -6 -6 -6 -6 -6 -5 -5 -4 -4 -4 -3 -2 -2 -2 -1 ------- Run | Yrd Mat Min Mat Min Mat Fac Was Fac Low Low Dat Pro Fac Low Low Zio Pro Fac Fac Arm Lab Res Res Qua Sec Acc Combat Hostiles Destroyed 142 | . 11 2 30 . 26 7 . 6 . 4 . . . . . . 6 4 . 10 . 3 1 1 1 30 Melee 27 | . . . . . . . . 6 . 4 . . . . . . 6 4 . 5 . 1 . 1 . . Guns 38 | . 7 . . . . . . . . . . . . . . . . . . . . . . . 1 30 Cannons 69 | . 4 2 30 . 26 7 . . . . . . . . . . . . . . . . . . . . AOE 7 | . . . . . . . . . . . . . . . . . . . . 5 . 2 . . . . Classes Destroyed 21 | 3 4 . 3 . 1 1 . 2 . . . . . . . . 1 . . . . . . . . 6 Worker 6 | 2 . . . . 1 . . 1 . . . . . . . . . . . . . . . . . 2 Builder 5 | . . . . . . . . 2 . . . . . . . . . . . . . . . 1 . 2 Tunneler 4 | 4 . . . . . . . . . . . . . . . . . . . . . . . . . . Hauler 12 | . 2 . 1 . 2 1 . 1 . . . . . . . . . 2 1 . . . . . . 2 Recycler 8 | 1 1 . . . 2 . . 1 . . . . . . . . . . . . . . . . . 3 Operator 6 | . . . . . . . . 2 . . . . . . . . . . 1 1 . 1 . 1 . . Watcher 14 | . 3 . 5 . 5 . . 1 . . . . . . . . . . . . . . . . . . Swarmer 35 | . 3 2 6 . . 3 . . . . . . . . . . 4 1 . 5 . 2 . . . 9 Cutter 2 | . . . . . . . . . . . . . . . . . . . . . . . . . . 2 Saboteur 1 | . . . . . . . . . . . . . . . . . . . . . . . . . . 1 Grunt 49 | . 8 . 13 . 16 1 . 1 . 4 . . . . . . . . . . . . . . . 6 Brawler 5 | . . . 1 . 1 . . . . . . . . . . . . . . . . . . . . 3 Duelist 4 | . . . 1 . 1 . . . . . . . . . . . . 1 . . . . . . . 1 Protector 1 | . . . . . . . . . . . . . . . . . . . . . . . . . . 1 Sentry 21 | . . . 9 . 7 2 . 1 . . . . . . . . . . . 1 . 1 . . . . Hunter 5 | . . . . . 1 . . 1 . . . . . . . . 1 1 . . . . . . . 1 Programmer 16 | . . . . . . 1 . 3 . . . . . . . . . 1 . 4 . . . 1 1 5 Behemoth 2 | . . . . . . . . . . . . . . . . . 1 . . . . . 1 . . . Investigator 1 | . . . . . . . . . . . . . . . . . . . . . . . . . . 1 Striker 1 | . . . . . . . . . . . . . . . . . . . . . . . . . . 1 Assembled 1 | . . . . . . . . . . . . . . . . . . . . . . . . . . 1 Best Kill Streak 13 | 4 7 1 5 . 4 3 . 5 . 4 1 . . . . . 4 3 2 7 . 2 1 2 1 13 Combat Bots Only 10 | . 7 1 5 . 4 2 . 1 . 4 . . . . . . 4 2 . 7 . 2 1 1 1 10 Max Kills in Single Turn 3 | 1 1 1 1 . 1 1 . 1 . 1 1 . . . . . 2 1 1 3 . 1 1 1 1 2 Gunslinging 1 | . . . . . . . . . . . . . . . . . . . . . . . . . . 1 Exploded 3 | . . . . . . . . . . . . . . . . . . . . 3 . 1 . . . . Melee 2 | . . . . . . . . 1 . 1 . . . . . . 2 1 . 1 . 1 . 1 . . Uniques/NPCs Destroyed 2 | . . . . . . . . . . . 1 . . . . . . . . . 1 . . . . . Data Miner (-7/Data Miner) A5 (-4/Lab) Combat | -11 -10 -10 -9 -9 -8 -7 -7 -7 -7 -7 -7 -6 -6 -6 -6 -6 -5 -5 -4 -4 -4 -3 -2 -2 -2 -1 -------- Run | Yrd Mat Min Mat Min Mat Fac Was Fac Low Low Dat Pro Fac Low Low Zio Pro Fac Fac Arm Lab Res Res Qua Sec Acc Hostile Shots Fired 1525 | . 43 30 126 . 107 90 . 42 . 24 8 . 3 . 8 . 72 46 10 70 3 79 99 110 74 481 Missed 504 | . 9 9 45 . 27 30 . 19 . 9 4 . 3 . 2 . 19 24 6 27 1 24 31 42 32 141 Hits 1021 | . 34 21 81 . 80 60 . 23 . 15 4 . . . 6 . 53 22 4 43 2 55 68 68 42 340 Melee 24 | . . . 4 . . . . . . . . . . . . . . 2 . . . . 1 . 1 16 Projectile 997 | . 34 21 77 . 80 60 . 23 . 15 4 . . . 6 . 53 20 4 43 2 55 67 68 41 324 AOE 4 | . . . . . . . . . . . . . . . . . . . . . . . . . . 4 Critical Strikes 43 | . . . 4 . 7 1 . 1 . 1 . . . . . . . 1 . 1 . 1 . 7 4 15 Part Disruptions 2 | . . . . . . . . . . . 1 . . . . . . 1 . . . . . . . . Damage Taken 16144 | . 404 182 1149 . 1224 625 . 418 . 255 174 . . . 106 . 937 408 102 826 51 1315 1703 1581 872 3812 Core 4177 | . 122 45 70 . 165 66 . 151 . 101 43 . . . 17 . 329 135 . 174 25 204 592 270 461 1207 Absorbed by Shields 243 | . . . . . . . . . . . . . . . . . . . . . . . . . . 243 Redirected to Shielding 78 | . . . . . . . . . . . 78 . . . . . . . . . . . . . . . Ignored by Resistances 4297 | . . . . . . . . . . . . . . . . . . . . . . . . . 79 4218 Regen/Repaired (Parts) 555 | . . . . . . . 89 12 . . . . . . . 244 . 51 . . . 4 20 135 . . Core Remaining (%) 60 | 100 . 33 . 82 70 . . . . . . 48 . . . . 59 86 . . 82 78 . . 6 24 Volleys Fired 486 | 24 35 8 84 . 111 50 6 4 . . 1 . . . . 2 . 1 . 20 1 8 . . 2 129 Largest 2 | 2 2 2 2 . 2 2 1 1 . . 1 . . . . 1 . 1 . 1 1 1 . . 2 2 Hottest 200 | 40 136 136 136 . 120 140 65 40 . . 5 . . . . 5 . 5 . 52 10 80 . . 200 200 Shots Fired 814 | 48 70 16 168 . 222 78 6 5 . . 1 . . . . 2 . 1 . 20 1 8 . 1 4 163 Gun 250 | 48 26 5 . . . . . . . . . . . . . . . . . . . 3 . 1 4 163 Cannon 531 | . 44 11 168 . 222 77 6 3 . . . . . . . . . . . . . . . . . . Launcher 9 | . . . . . . . . 2 . . . . . . . . . . . 2 . 5 . . . . Special 24 | . . . . . . 1 . . . . 1 . . . . 2 . 1 . 18 1 . . . . . Kinetic 85 | 48 26 5 . . . . 3 3 . . . . . . . . . . . . . . . . . . Thermal 525 | . 44 11 168 . 222 77 3 . . . . . . . . . . . . . . . . . . . Explosive 2 | . . . . . . . . . . . . . . . . . . . . 2 . . . . . . Electromagnetic 11 | . . . . . . . . 2 . . . . . . . . . . . . . 8 . 1 . . Slashing 167 | . . . . . . . . . . . . . . . . . . . . . . . . . 4 163 Robot Hit Streak 17 | 12 10 2 10 . 17 16 2 3 . . 4 . . . . 1 . 2 . 11 6 8 . . 1 8 Robot Miss Streak 6 | 5 4 5 5 . 6 4 1 . . . . . . . . 1 . . . 1 . 1 . . 2 4 Penetration Max 1 | . . . . . . . . . . . . . . . . . . . . . . . . . . 1 Secondary Targets 7 | . . . . . . . . . . . . . . . . . . . . . . . . . . 7 Max Gunslinging Chain 1 | . . . . . . . . . . . . . . . . . . . . . . . . . . 1 Capacitor 95 | . . . . . . . . . . . . . . . . . . . . . . . . . . 95 Shots Hit Robots 552 | 27 43 4 88 . 132 33 2 23 . 8 2 . . . . 1 14 13 3 32 1 13 4 6 2 101 Core Hits 259 | 11 20 3 38 . 55 11 . 10 . 5 1 . . . . . 7 7 2 10 . 19 1 1 1 57 Critical Kills . | . . . . . . . . . . . . . . . . . . . . . . . . . . . Critical Parts Destroyed . | . . . . . . . . . . . . . . . . . . . . . . . . . . . Critical Strikes 14 | . . . . . . . . . . . 1 . . . . . 1 . 1 3 . 3 . . . 5 Sever 12 | . . . . . . . . . . . . . . . . . . . 1 3 . 3 . . . 5 Impale 2 | . . . . . . . . . . . 1 . . . . . 1 . . . . . . . . . Melee Attacks 283 | . . . . . . . . 53 . 12 20 . 21 . 2 1 25 21 11 38 10 16 15 33 5 . Impact 41 | . . . . . . . . . . . . . . . . . . . . . 3 3 10 21 4 . Slashing 156 | . . . . . . . . 40 . . . . 6 . 2 1 7 21 9 38 7 13 . 12 . . Piercing 86 | . . . . . . . . 13 . 12 20 . 15 . . . 18 . 2 . . . 5 . 1 . Sneak Attacks 14 | . . . . . . . . 5 . 1 1 . . . . . . 3 1 1 . 1 . 1 . . Combat Hostiles 3 | . . . . . . . . . . 1 . . . . . . . 1 . 1 . . . . . . Follow-up Attacks 11 | . . . . . . . . 2 . 2 . . . . . . 3 . . . . 2 . 2 . . Damage Inflicted 22078 | 263 803 120 2057 . 3153 868 56 1477 . 312 83 . . . . . 617 716 258 1477 . 1000 155 446 140 8077 Guns 8712 | 263 271 16 . . . . . . . . . . . . . . . . . . . 27 . . 58 8077 Cannons 6770 | . 532 104 2057 . 3153 868 56 . . . . . . . . . . . . . . . . . . . Explosions 1107 | . . . . . . . . 37 . . . . . . . . . . . 604 . 466 . . . . Melee 5395 | . . . . . . . . 1440 . 312 83 . . . . . 617 716 258 873 . 480 114 446 56 . Ramming 94 | . . . . . . . . . . . . . . . . . . . . . . 27 41 . 26 . Kinetic 606 | 263 271 16 . . . . 56 . . . . . . . . . . . . . . . . . . . Thermal 6714 | . 532 104 2057 . 3153 868 . . . . . . . . . . . . . . . . . . . . Explosive 604 | . . . . . . . . . . . . . . . . . . . . 604 . . . . . . Electromagnetic 530 | . . . . . . . . 37 . . . . . . . . . . . . . 493 . . . . Impact 449 | . . . . . . . . . . . . . . . . . . . . . . 105 . 288 56 . Slashing 12238 | . . . . . . . . 1412 . . . . . . . . 311 716 258 873 . 375 . 158 58 8077 Piercing 843 | . . . . . . . . 28 . 312 83 . . . . . 306 . . . . . 114 . . . Highest Corruption 16 | . 6 6 1 1 . 6 6 10 10 10 10 10 . . . . . 2 1 6 6 4 4 12 16 4 Average Corruption 5 | . 5 6 1 1 . 2 6 8 10 10 10 10 . . . . . 1 1 3 6 3 3 6 8 1 Corruption Purged . | . . . . . . . . . . . . . . . . . . . . . . . . . . . Corruption Blocked . | . . . . . . . . . . . . . . . . . . . . . . . . . . . Effects 174 | . 9 24 4 6 . 13 11 42 14 4 5 3 . . . . . . . 7 10 . 3 6 10 3 Message Errors 46 | . 3 5 . 2 . 2 3 12 3 1 2 2 . . . . . . . 4 3 . 1 2 1 . Matter Fused 36 | . 1 5 1 2 . 2 2 11 3 1 2 . . . . . . . . . 3 . 1 1 . 1 Heat Flow Errors 20 | . 2 1 . 2 . . 2 5 2 . 1 . . . . . . . . . 2 . . 1 1 1 Energy Discharges 25 | . 3 6 . . . 4 . 5 3 1 . 1 . . . . . . . 1 . . 1 . . . Parts Rejected 1 | . . . . . . . . . . . . . . . . . . . . . . . . . 1 . Parts Fused 1 | . . . . . . . . . . . . . . . . . . . . . . . . 1 . . Data Loss (minor) 26 | . . 6 2 . . 2 1 6 1 . . . . . . . . . . 2 2 . . . 4 . Data Loss (major) 9 | . . . . . . 1 2 2 2 1 . . . . . . . . . . . . . . . 1 Misfires 4 | . . . . . . 2 . 1 . . . . . . . . . . . . . . . 1 . . Alerts 4 | . . 1 1 . . . 1 . . . . . . . . . . . . . . . . . 1 . Misdirections 2 | . . . . . . . . . . . . . . . . . . . . . . . . . 2 . Overload Shots . | . . . . . . . . . . . . . . . . . . . . . . . . . . . Overflow Damage 836 | . 1 . 54 . 48 40 . 269 . . . . . . . . 20 22 . 115 . 49 . 218 . . Projectiles 143 | . 1 . 54 . 48 40 . . . . . . . . . . . . . . . . . . . . Explosions 69 | . . . . . . . . . . . . . . . . . . . . 69 . . . . . . Melee 624 | . . . . . . . . 269 . . . . . . . . 20 22 . 46 . 49 . 218 . . Knockbacks 2 | . . . . . . . . . . . . . . . . . . . . . . . . 2 . . Impact 2 | . . . . . . . . . . . . . . . . . . . . . . . . 2 . . Kinetic . | . . . . . . . . . . . . . . . . . . . . . . . . . . . Secondary . | . . . . . . . . . . . . . . . . . . . . . . . . . . . Self-Inflicted Damage 108 | . . . . . . . . 75 . . . . . . . . . . . . . 13 20 . . . Shots 3 | . . . . . . . . 3 . . . . . . . . . . . . . . . . . . Rammed 3 | . . . . . . . . . . . . . . . . . . . . . . 1 2 . . . Targets Rammed 4 | . . . . . . . . . . . . . . . . . . . . . . 1 2 . 1 . Kicked 1 | . . . . . . . . . . . . . . . . . . . . . . . . . 1 . Crushed . | . . . . . . . . . . . . . . . . . . . . . . . . . . . Highest Temperature 375 | . 225 225 374 175 261 324 258 313 223 46 286 64 152 109 161 76 58 96 . 244 256 60 375 204 164 89 Average Temperature 64 | . 100 68 61 81 47 85 26 68 101 16 80 24 65 44 62 16 24 37 . 62 57 20 173 108 66 33 Received Heat Transfer 3293 | . 126 6 381 . 702 102 . 81 . 153 . . . . 27 . 93 . . 54 . 27 351 72 126 992 Effects 6 | . . . . . . 2 . 1 . . 1 . . . . . . . . 1 . . 1 . . . Energy Bleed 2 | . . . . . . . . . . . 1 . . . . . . . . 1 . . . . . . Interference 2 | . . . . . . 2 . . . . . . . . . . . . . . . . . . . . Matter Decay 2 | . . . . . . . . 1 . . . . . . . . . . . . . . 1 . . . Siege Activations . | . . . . . . . . . . . . . . . . . . . . . . . . . . . Martial Activations . | . . . . . . . . . . . . . . . . . . . . . . . . . . . Shielding Activations . | . . . . . . . . . . . . . . . . . . . . . . . . . . . Robots Disrupted 1 | . . . . . . . . . . . . . . . . . . . . . . 1 . . . . Combat Hostiles 1 | . . . . . . . . . . . . . . . . . . . . . . 1 . . . . Robots Corrupted 1 | . . . . . . . . . . . . . . . . . . . . . . . . 1 . . Combat Hostiles . | . . . . . . . . . . . . . . . . . . . . . . . . . . . Parts Fried 6 | . . . . . . . . 1 . . . . . . . . . . . . . 2 . 3 . . Impact Corruptions 6 | . . . . . . . . . . . . . . . . . . . . . . . . 6 . . Robots Melted . | . . . . . . . . . . . . . . . . . . . . . . . . . . . Combat Hostiles . | . . . . . . . . . . . . . . . . . . . . . . . . . . . Parts Melted 22 | . 1 . 6 . 13 2 . . . . . . . . . . . . . . . . . . . . Heat Transferred 10878 | . 962 185 3478 . 5069 1184 . . . . . . . . . . . . . . . . . . . . Parts Sabotaged . | . . . . . . . . . . . . . . . . . . . . . . . . . . . Parts Stolen . | . . . . . . . . . . . . . . . . . . . . . . . . . . . Parts Stripped . | . . . . . . . . . . . . . . . . . . . . . . . . . . . Power Chain Reactions 1 | . . . . . . . . 1 . . . . . . . . . . . . . . . . . . Alert | -11 -10 -10 -9 -9 -8 -7 -7 -7 -7 -7 -7 -6 -6 -6 -6 -6 -5 -5 -4 -4 -4 -3 -2 -2 -2 -1 ------- Run | Yrd Mat Min Mat Min Mat Fac Was Fac Low Low Dat Pro Fac Low Low Zio Pro Fac Fac Arm Lab Res Res Qua Sec Acc Maximum Alert Level 5 | . . . 2 . 1 1 . 2 . . . . . . . . . 1 . 3 . . . . 5 5 Low Security (%) 73 | 100 100 100 41 100 77 94 100 23 . . . . 100 . . . . 92 100 39 . 100 100 100 66 . Level 1 15 | . . . 48 . 22 5 . 40 . . . . . . . . . 7 . 6 . . . . . . Level 2 6 | . . . 10 . . . . 36 . . . . . . . . . . . 23 . . . . . . Level 3 1 | . . . . . . . . . . . . . . . . . . . . 30 . . . . . . Level 4 . | . . . . . . . . . . . . . . . . . . . . . . . . . . 3 Level 5 . | . . . . . . . . . . . . . . . . . . . . . . . . . . . High Security . | . . . . . . . . . . . . . . . . . . . . . . . . . . . Max Security 4 | . . . . . . . . . . . . . . . . . . . . . . . . . 33 95 Peak Influence 2996 | 10 175 96 475 109 361 225 18 539 . . . . 30 . . . . 216 100 805 . 40 71 85 1648 2996 Initial 1100 | . . 13 . 109 . 159 12 . . . . . . . . . . 9 100 37 . . 3 31 47 1100 Average 218 | 1 56 26 238 12 100 102 2 308 . . . . 9 . . . . 59 91 436 . 9 22 56 553 2241 Influence Increases 8778 | 35 330 272 1026 . 817 300 58 1206 . 90 20 . 49 . 90 . 165 297 28 1160 . 188 230 273 72 2072 Destroy 0b10 Robot/C 3960 | . 220 180 600 . 520 140 . 440 . 80 20 . . . . . 120 80 . 560 . 60 20 20 20 880 Destroy 0b10 Robot/NC 290 | 35 30 . 30 . 50 5 . 45 . . . . . . . . . 10 10 5 . 5 . 10 . 55 Destroy Leader 870 | . 60 30 182 . 144 42 . 104 . 10 . . . . . . 30 22 2 100 . 10 10 . 10 114 Allied During Kill 395 | . . 32 3 . . . . 128 . . . . . . . . . . . 49 . . . . . 183 Successful Hack 432 | . 20 . 62 . 29 34 . 165 . . . . 14 . . . . 25 6 26 . 28 23 . . . Disable Machine 690 | . . 15 120 . 30 . . 90 . . . . 30 . . . . 15 . 135 . . 30 90 15 120 Destroy Structure 626 | . . . 14 . 29 4 58 39 . . . . 5 . . . . 10 10 90 . 10 12 33 12 300 Partial Spotted 90 | . . . . . 15 . . 15 . . . . . . . . . . . 45 . 15 . . . . Lose Combat Pursuer 1425 | . . 15 15 . . 75 . 180 . . . . . . 90 . 15 135 . 150 . 60 135 120 15 420 Influence Decreases 7983 | 35 294 308 745 281 465 615 95 700 378 135 103 . 36 13 30 60 150 106 156 467 771 181 180 246 93 1340 Entered New Map 2425 | . . 23 . 172 . 193 25 . 188 25 83 . . 5 . 60 . 6 106 41 771 . 4 26 37 660 Time Decay 3794 | 35 274 265 535 109 455 422 52 464 190 60 10 . 36 8 30 . 130 90 40 206 . 107 90 150 26 10 Lost Part 480 | . 20 . 20 . 10 . . 30 . 10 10 . . . . . 20 10 10 70 . 74 86 70 30 10 Lost Ally 1058 | . . 20 40 . . . 18 130 . 40 . . . . . . . . . 150 . . . . . 660 Purge Threat 226 | . . . 150 . . . . 76 . . . . . . . . . . . . . . . . . . Squads Dispatched 74 | . 1 . 2 . 3 2 . 7 . . . . . . . . . 3 1 2 . 2 3 3 7 38 Investigation 7 | . . . 1 . . . . 2 . . . . . . . . . 2 . . . . . 1 . 1 Extermination 10 | . . . . . . 1 . 3 . . . . . . . . . 1 . 2 . 1 1 1 . . Reinforcement 15 | . 1 . 1 . 3 1 . 2 . . . . . . . . . . 1 . . . . 1 1 4 Assault 38 | . . . . . . . . . . . . . . . . . . . . . . . 2 . 6 30 Garrison 3 | . . . . . . . . . . . . . . . . . . . . . . . . . . 3 Intercept 1 | . . . . . . . . . . . . . . . . . . . . . . 1 . . . . Searches Triggered . | . . . . . . . . . . . . . . . . . . . . . . . . . . . Construction Impeded 5 | . . . 1 . 1 1 . . . . . . . . . . . . . . . . . . . 2 Haulers Reinforced . | . . . . . . . . . . . . . . . . . . . . . . . . . . . Active Scanning Responses . | . . . . . . . . . . . . . . . . . . . . . . . . . . . Cargo Convoy Interrupts . | . . . . . . . . . . . . . . . . . . . . . . . . . . . Stealth | -11 -10 -10 -9 -9 -8 -7 -7 -7 -7 -7 -7 -6 -6 -6 -6 -6 -5 -5 -4 -4 -4 -3 -2 -2 -2 -1 --------- Run | Yrd Mat Min Mat Min Mat Fac Was Fac Low Low Dat Pro Fac Low Low Zio Pro Fac Fac Arm Lab Res Res Qua Sec Acc Distress Signals 12 | . . . 4 . . . . 3 . . . . . . . . . . . 3 . . . . . 2 Communications Jammed 82 | . . . . . . . . . . . . . . . . . . . . 11 . 2 25 44 . . Distress Signals 69 | . . . . . . . . . . . . . . . . . . . . 11 . 2 25 31 . . Times Spotted 415 | . 17 11 38 . 42 17 5 28 . 4 4 . 3 . 6 . 9 20 12 30 1 27 20 15 21 85 Peak Tracking Total 21 | . 8 3 5 . 4 7 1 6 . 4 4 . 3 . 6 . 6 10 12 9 1 15 12 9 10 21 Tactical Retreats 37 | . . 1 1 . . 3 . 3 . . . . . . 1 . 1 3 . 4 . 2 3 4 1 10 Traps | -11 -10 -10 -9 -9 -8 -7 -7 -7 -7 -7 -7 -6 -6 -6 -6 -6 -5 -5 -4 -4 -4 -3 -2 -2 -2 -1 ------- Run | Yrd Mat Min Mat Min Mat Fac Was Fac Low Low Dat Pro Fac Low Low Zio Pro Fac Fac Arm Lab Res Res Qua Sec Acc Traps Triggered 20 | . 7 . 2 . 1 2 . 3 . . . . . . . . . 1 . 1 . . . 3 . . Indirectly . | . . . . . . . . . . . . . . . . . . . . . . . . . . . Trap Hack Attempts . | . . . . . . . . . . . . . . . . . . . . . . . . . . . Triggered . | . . . . . . . . . . . . . . . . . . . . . . . . . . . Disarmed . | . . . . . . . . . . . . . . . . . . . . . . . . . . . Reprogrammed . | . . . . . . . . . . . . . . . . . . . . . . . . . . . Reused . | . . . . . . . . . . . . . . . . . . . . . . . . . . . Traps Extracted . | . . . . . . . . . . . . . . . . . . . . . . . . . . . Installed . | . . . . . . . . . . . . . . . . . . . . . . . . . . . Triggered . | . . . . . . . . . . . . . . . . . . . . . . . . . . . Machines | -11 -10 -10 -9 -9 -8 -7 -7 -7 -7 -7 -7 -6 -6 -6 -6 -6 -5 -5 -4 -4 -4 -3 -2 -2 -2 -1 ---------- Run | Yrd Mat Min Mat Min Mat Fac Was Fac Low Low Dat Pro Fac Low Low Zio Pro Fac Fac Arm Lab Res Res Qua Sec Acc Machines Disabled 52 | . . 1 8 . 2 . . 6 . . . . 2 . . . . 1 . 9 4 . 2 7 2 8 Max in Single Turn 3 | . . 1 2 . 1 . . 3 . . . . 1 . . . . 1 . 2 1 . 1 1 1 1 Garrison Access 2 | . . . . . . 1 . . . . . . . . . . . . . . . . 1 . . . Energy Cycler 2 | . . . . . . . . . . . . . . . . . . . . 1 . . . . . 1 Machines Repaired . | . . . . . . . . . . . . . . . . . . . . . . . . . . . Machines Dismantled . | . . . . . . . . . . . . . . . . . . . . . . . . . . . Machines Sabotaged . | . . . . . . . . . . . . . . . . . . . . . . . . . . . Overloaded Fab Kills . | . . . . . . . . . . . . . . . . . . . . . . . . . . . Hacking | -11 -10 -10 -9 -9 -8 -7 -7 -7 -7 -7 -7 -6 -6 -6 -6 -6 -5 -5 -4 -4 -4 -3 -2 -2 -2 -1 --------- Run | Yrd Mat Min Mat Min Mat Fac Was Fac Low Low Dat Pro Fac Low Low Zio Pro Fac Fac Arm Lab Res Res Qua Sec Acc Machines Accessed 97 | . 7 . 12 . 8 9 . 18 . . 3 . 4 . . . . 8 4 4 2 6 4 3 4 1 Terminals 54 | . 6 . 9 . 5 5 . 9 . . . . 1 . . . . 4 2 2 . 3 3 1 3 1 Fabricators 11 | . . . . . . 2 . 5 . . . . . . . . . . 1 2 . . 1 . . . Repair Stations 1 | . . . . . . . . . . . . . . . . . . 1 . . . . . . . . Recycling Units 12 | . 1 . 2 . 2 . . 2 . . . . 2 . . . . 1 . . . 2 . . . . Scanalyzers 12 | . . . 1 . 1 1 . 2 . . . . 1 . . . . 1 1 . . 1 . 2 1 . Garrison Access 2 | . . . . . . 1 . . . . . . . . . . . 1 . . . . . . . . Total Hacks 265 | . 13 . 22 . 21 18 . 36 . . 24 . 10 . . . . 18 9 9 20 19 21 8 12 5 Successful 141 | . 9 . 12 . 9 12 . 24 . . 24 . 6 . . . . 6 5 4 20 3 4 1 1 1 Failed 123 | . 4 . 10 . 12 6 . 11 . . . . 4 . . . . 12 4 5 . 16 17 7 11 4 Catastrophic 27 | . . . 1 . 1 . . 2 . . . . 1 . . . . 1 . 1 . 8 6 1 5 . Database Lockouts 1 | . . . . . . . . 1 . . . . . . . . . . . . . . . . . . Manual 55 | . 11 . 13 . 15 6 . 6 . . . . . . . . . 3 . . . . . . 1 . Terminals 140 | . 12 . 16 . 14 11 . 18 . . . . 2 . . . . 7 4 5 . 14 20 4 8 5 Fabricators 22 | . . . . . . 4 . 11 . . . . . . . . . . 2 4 . . 1 . . . Repair Stations 3 | . . . . . . . . . . . . . . . . . . 3 . . . . . . . . Recycling Units 19 | . 1 . 3 . 5 . . 2 . . . . 2 . . . . 2 . . . 4 . . . . Scanalyzers 32 | . . . 3 . 2 2 . 5 . . . . 6 . . . . 2 3 . . 1 . 4 4 . Garrison Access 5 | . . . . . . 1 . . . . . . . . . . . 4 . . . . . . . . Terminal Hacks 84 | . 1 . 3 . 2 6 . 11 . . 24 . 1 . . . . 3 3 2 20 2 4 . 1 1 Record 26 | . . . . . . . . . . . 6 . . . . . . . . . 19 . . . . 1 Part Schematic 17 | . . . . . . 1 . 3 . . 11 . . . . . . 2 . . . . . . . . Robot Schematic 4 | . . . . . . . . . . . 4 . . . . . . . . . . . . . . . Prototype ID Bank 5 | . . . . . . . . . . . 3 . . . . . . . . . . 1 . . 1 . Open Door 1 | . . . . . . . . . . . . . . . . . . . . . . . 1 . . . Branch Access Points 5 | . . . 1 . . 1 . 1 . . . . 1 . . . . . . . . . 1 . . . Terminal Index 3 | . . . . . 2 . . . . . . . . . . . . . . . . . 1 . . . Alert Level 1 | . . . . . . . . . . . . . . . . . . . 1 . . . . . . . Unreport Threat 2 | . . . 1 . . . . 1 . . . . . . . . . . . . . . . . . . Locate Traps 2 | . . . . . . 1 . . . . . . . . . . . . 1 . . . . . . . Security Status 1 | . . . . . . . . 1 . . . . . . . . . . . . . . . . . . Recall Investigation 2 | . . . . . . . . 1 . . . . . . . . . . 1 . . . . . . . Hauler Manifests 4 | . . . . . . 1 . 2 . . . . . . . . . . . 1 . . . . . . Registered Components 2 | . . . . . . 1 . . . . . . . . . . . 1 . . . . . . . . Registered Prototypes 2 | . . . . . . 1 . 1 . . . . . . . . . . . . . . . . . . Zone Layout 6 | . 1 . 1 . . . . 1 . . . . . . . . . . . 1 . 1 1 . . . Release Object 1 | . . . . . . . . . . . . . . . . . . . . . 1 . . . . . Fabricator Hacks 12 | . . . . . . 2 . 6 . . . . . . . . . . 2 2 . . . . . . Network Status 4 | . . . . . . 1 . 1 . . . . . . . . . . 1 1 . . . . . . Load Schematic 2 | . . . . . . . . 2 . . . . . . . . . . . . . . . . . . Build 6 | . . . . . . 1 . 3 . . . . . . . . . . 1 1 . . . . . . Repair Station Hacks . | . . . . . . . . . . . . . . . . . . . . . . . . . . . Recycling Unit Hacks 7 | . 1 . 1 . 1 . . 2 . . . . 1 . . . . . . . . 1 . . . . Retrieve Components 7 | . 1 . 1 . 1 . . 2 . . . . 1 . . . . . . . . 1 . . . . Scanalyzer 17 | . . . 2 . 2 2 . 4 . . . . 4 . . . . 2 . . . . . 1 . . Insert Component 1 | . . . . . . . . . . . . . 1 . . . . . . . . . . . . . Retrieve Study 16 | . . . 2 . 2 2 . 4 . . . . 3 . . . . 2 . . . . . 1 . . Garrison Access Hacks 1 | . . . . . . 1 . . . . . . . . . . . . . . . . . . . . Seal Access 1 | . . . . . . 1 . . . . . . . . . . . . . . . . . . . . Unauthorized Hacks 20 | . 7 . 6 . 4 1 . 1 . . . . . . . . . 1 . . . . . . . . Terminals 18 | . 7 . 6 . 4 1 . . . . . . . . . . . . . . . . . . . . Track 1 | . . . . . . 1 . . . . . . . . . . . . . . . . . . . . Botnet 4 | . 2 . 1 . 1 . . . . . . . . . . . . . . . . . . . . . Skim 13 | . 5 . 5 . 3 . . . . . . . . . . . . . . . . . . . . . Fabricators 1 | . . . . . . . . 1 . . . . . . . . . . . . . . . . . . Liberate 1 | . . . . . . . . 1 . . . . . . . . . . . . . . . . . . Repair Stations 1 | . . . . . . . . . . . . . . . . . . 1 . . . . . . . . Patch 1 | . . . . . . . . . . . . . . . . . . 1 . . . . . . . . Recycling Units . | . . . . . . . . . . . . . . . . . . . . . . . . . . . Scanalyzers . | . . . . . . . . . . . . . . . . . . . . . . . . . . . Garrison Access . | . . . . . . . . . . . . . . . . . . . . . . . . . . . Data Cores Recovered 4 | . . . . . . . . 1 . . . . . . . . . . 1 . . 1 . 1 . . Used 1 | . . . . . . . . . . . . . . . . . . . . . . . . 1 . . Hacking Detections 71 | . 5 . 7 . 6 7 . 14 . . . . 4 . . . . 7 3 4 . 5 2 3 3 1 Full Trace Events 5 | . . . . . . . . 2 . . . . . . . . . 1 . . . . . 1 . 1 Feedback Events . | . . . . . . . . . . . . . . . . . . . . . . . . . . . Feedback Blocked . | . . . . . . . . . . . . . . . . . . . . . . . . . . . Robot Schematics Acquired 8 | . . . . . . . . . . . 4 . . . . 4 . . . . . . . . . . Robots Built 1 | . . . . . . . . . . . . . . . . . . . . 1 . . . . . . Authchips . | . . . . . . . . . . . . . . . . . . . . . . . . . . . Time 262 | . . . . . . . . . . . . . . . . . . . 169 93 . . . . . . Total Robot Build Rating 7 | . . . . . . . . . . . . . . . . . . . . 7 . . . . . . Part Schematics Acquired 31 | . . . . . . 1 . 3 . . 11 . . . . 14 . 2 . . . . . . . . Parts Built 7 | . . . . . . 2 . 5 . . . . . . . . . . . . . . . . . . Authchips . | . . . . . . . . . . . . . . . . . . . . . . . . . . . Time 190 | . . . . . . 53 . 137 . . . . . . . . . . . . . . . . . . Total Part Build Rating 42 | . . . . . . 12 . 30 . . . . . . . . . . . . . . . . . . Part Studies Acquired 16 | . . . 2 . 2 2 . 4 . . . . 3 . . . . 2 . . . . . 1 . . Parts Repaired . | . . . . . . . . . . . . . . . . . . . . . . . . . . . Time . | . . . . . . . . . . . . . . . . . . . . . . . . . . . Parts Recycled . | . . . . . . . . . . . . . . . . . . . . . . . . . . . Recycled Matter . | . . . . . . . . . . . . . . . . . . . . . . . . . . . Retrieved Matter . | . . . . . . . . . . . . . . . . . . . . . . . . . . . Retrieved Components 27 | . 3 . . . 10 . . 9 . . . . 3 . . . . . . . . 2 . . . . Parts Scanalyzed . | . . . . . . . . . . . . . . . . . . . . . . . . . . . Part Schematics Acquired . | . . . . . . . . . . . . . . . . . . . . . . . . . . . Parts Damaged . | . . . . . . . . . . . . . . . . . . . . . . . . . . . Bothacking | -11 -10 -10 -9 -9 -8 -7 -7 -7 -7 -7 -7 -6 -6 -6 -6 -6 -5 -5 -4 -4 -4 -3 -2 -2 -2 -1 ------------ Run | Yrd Mat Min Mat Min Mat Fac Was Fac Low Low Dat Pro Fac Low Low Zio Pro Fac Fac Arm Lab Res Res Qua Sec Acc Used RIF Installer . | . . . . . . . . . . . . . . . . . . . . . . . . . . . Robots Hacked 6 | . . . . . . 1 . . . . 1 . . . . 1 . 1 . 1 1 . . . . . Non-combat 2 | . . . . . . 1 . . . . . . . . . . . 1 . . . . . . . . Combat 3 | . . . . . . . . . . . 1 . . . . 1 . . . 1 . . . . . . Robot Hacks Applied 5 | . . . . . . 1 . . . . 1 . . . . 1 . 1 . 1 . . . . . . parse_system 3 | . . . . . . . . . . . 1 . . . . 1 . . . 1 . . . . . . find_chute 2 | . . . . . . 1 . . . . . . . . . . . 1 . . . . . . . . Manual 1 | . . . . . . . . . . . . . . . . . . . . . 1 . . . . . Relay Couplers Released 1 | . . . . . . . . . . . . . . . . . . . . . . . 1 . . . Machine Destruction 1 | . . . . . . . . . . . . . . . . . . . . . . . 1 . . . Fabnet Peak Effective % . | . . . . . . . . . . . . . . . . . . . . . . . . . . . Robots Rewired 8 | . . . . . . . . . . . . . . . . . . . . 8 . . . . . . Allies Hacked 2 | . . . . . . . . 1 . . . . . . . . . . . 1 . . . . . . Hacks Repelled . | . . . . . . . . . . . . . . . . . . . . . . . . . . . Allies | -11 -10 -10 -9 -9 -8 -7 -7 -7 -7 -7 -7 -6 -6 -6 -6 -6 -5 -5 -4 -4 -4 -3 -2 -2 -2 -1 -------- Run | Yrd Mat Min Mat Min Mat Fac Was Fac Low Low Dat Pro Fac Low Low Zio Pro Fac Fac Arm Lab Res Res Qua Sec Acc Total Allies 83 | . . 3 . . . . 19 3 . . . . . . . . . . . 9 . . . . . 49 Largest Group 19 | . . 3 2 . . . 19 8 2 2 . . . . . . . . . 7 . . . . . 18 Highest-Rated Group 465 | . . 40 24 . . . 465 239 32 32 . . . . . . . . . 417 . . . . . 248 Highest-Rated Ally 68 | . . 16 16 . . . 35 31 16 16 . . . . . . . . . 68 . . . . . 15 Total Orders . | . . . . . . . . . . . . . . . . . . . . . . . . . . . Ally Attacks 513 | . . 31 7 . . . 158 126 . 4 . . . . . . . . . 41 . . . . . 146 Total Damage 11035 | . . 256 92 . . . 4212 2121 . 47 . . . . . . . . . 1932 . . . . . 2375 Kills 73 | . . 7 . . . . 10 17 . . . . . . . . . . . 19 . . . . . 20 Allies Corrupted 1 | . . . . . . . . 1 . . . . . . . . . . . . . . . . . . Allies Melted 2 | . . . . . . . . 2 . . . . . . . . . . . . . . . . . . Intel | -11 -10 -10 -9 -9 -8 -7 -7 -7 -7 -7 -7 -6 -6 -6 -6 -6 -5 -5 -4 -4 -4 -3 -2 -2 -2 -1 ------- Run | Yrd Mat Min Mat Min Mat Fac Was Fac Low Low Dat Pro Fac Low Low Zio Pro Fac Fac Arm Lab Res Res Qua Sec Acc Active Infowar (turns) 3874 | 11 188 . . . . 845 . 353 374 3 . . . 139 109 243 213 51 . 341 . 402 131 319 149 3 Optics 259 | . . . . . . . . . . . . . . . . . . . . . . . . 110 149 . Sensors 1686 | . . . . . . . . 353 374 3 . . . 139 109 243 213 51 . . . . . 201 . . Terrain 1 | . 1 . . . . . . . . . . . . . . . . . . . . . . . . . Seismic 200 | 11 187 . . . . . . . . . . . . . . . . . . . . . . . . 2 T.N.C. 1 | . . . . . . . . . . . . . . . . . . . . . . . . . . 1 Machine Analysis 845 | . . . . . . 845 . . . . . . . . . . . . . . . . . . . . Cloaking 397 | . . . . . . . . . . . . . . . . . . . . . . 397 . . . . Jamming 1218 | . . . . . . . . . . . . . . . . . . . . 341 . 401 131 316 29 . Robot Analysis Total 154 | . . . . . . . . . . . 154 . . . . . . . . . . . . . . . Derelict Logs Recovered 10 | . . 3 . 2 . . . . . . . 1 . 2 1 . 1 . . . . . . . . . Drone Launches . | . . . . . . . . . . . . . . . . . . . . . . . . . . . Drone Recoveries . | . . . . . . . . . . . . . . . . . . . . . . . . . . . Exploration | -11 -10 -10 -9 -9 -8 -7 -7 -7 -7 -7 -7 -6 -6 -6 -6 -6 -5 -5 -4 -4 -4 -3 -2 -2 -2 -1 ------------- Run | Yrd Mat Min Mat Min Mat Fac Was Fac Low Low Dat Pro Fac Low Low Zio Pro Fac Fac Arm Lab Res Res Qua Sec Acc Turns Passed 14444 | 260 1454 934 1887 1005 1765 1043 384 1300 380 126 125 50 113 142 109 247 263 194 97 421 389 454 248 319 225 510 Spaces Moved 13129 | 119 606 545 948 619 831 826 387 1715 376 206 138 193 245 288 305 803 223 344 292 666 338 338 305 442 443 588 Core 16 | 16 . . . . . . . . . . . . . . . . . . . . . . . . . . Treads 3930 | 103 606 545 948 619 831 278 . . . . . . . . . . . . . . . . . . . . Legs 815 | . . . . . . . . . . . . . . . . . . . . . . . . . 227 588 Wheels . | . . . . . . . . . . . . . . . . . . . . . . . . . . . Hover 3853 | . . . . . . 548 387 1563 . . . . . . . . . . . 106 220 107 264 442 216 . Flight 4515 | . . . . . . . . 152 376 206 138 193 245 288 305 803 223 344 292 560 118 231 41 . . . Fastest Speed 17 | 50 160 160 160 160 160 52 57 23 23 23 23 23 20 17 20 23 19 20 26 21 27 35 36 42 30 30 Average Speed 79 | 145 186 160 161 160 160 91 57 52 86 23 23 23 20 19 21 23 67 28 26 25 51 95 54 47 44 30 Slowest Speed 280 | 160 240 160 240 160 240 160 57 115 88 23 23 23 20 20 23 27 162 92 26 280 108 192 111 55 61 30 Overloaded Moves 41 | . . . . . . . . . . . . . . 5 30 . 6 . . . . . . . . . Propulsion Burnouts . | . . . . . . . . . . . . . . . . . . . . . . . . . . . Robots Hopped 2 | . . . . . . . . . . . . . . . . . . . 2 . . . . . . . Potential Cave-ins 14 | . . . . . . . . . . . . . . . . . . . . . . . . 3 . 11 Cave-ins Triggered . | . . . . . . . . . . . . . . . . . . . . . . . . . . . Teleports 2 | . . . . . . . . . . . . . . . . . . . . . . 1 . . 1 . Exploration Rate (%) 53 | 6 82 99 88 97 69 25 95 56 63 41 80 46 7 54 55 83 42 13 12 54 98 21 13 59 53 26 Regions Visited 26 Branch Regions 14 Pre-discovered Areas 35 | . . 2 2 . . . . . . . 29 . . . . 2 . . . . . . . . . . Known Exits Taken 15 | . 1 1 1 1 . . . 1 1 . . 1 1 1 1 1 1 1 . . . . 1 1 . . Unknown Exits Taken 9 | 1 . . . . 1 . . . . 1 1 . . . . . . . 1 1 1 1 . . 1 . Scrap Searched 16 | . . 1 . 1 . . . . 2 1 . 3 . 5 1 2 . . . . . . . . . . Spaces Dug 123 | . . . 2 . 4 3 1 16 . . . . 5 . 2 . . 5 5 21 . 5 4 14 3 33 Terrain Destroyed 291 | . . . 10 . 27 3 2 35 . . . . 5 . 2 . . 5 5 33 . 5 4 14 3 138 Melee 72 | . . . . . . . . 15 . . . . 5 . 2 . . 5 5 14 . 5 4 14 3 . Projectile 166 | . . . 10 . 27 3 2 2 . . . . . . . . . . . . . . . . . 122 AOE 53 | . . . . . . . . 18 . . . . . . . . . . . 19 . . . . . 16 Terrain Rammed . | . . . . . . . . . . . . . . . . . . . . . . . . . . . Walls Destroyed . | . . . . . . . . . . . . . . . . . . . . . . . . . . . Machines Disabled . | . . . . . . . . . . . . . . . . . . . . . . . . . . . Actions | -11 -10 -10 -9 -9 -8 -7 -7 -7 -7 -7 -7 -6 -6 -6 -6 -6 -5 -5 -4 -4 -4 -3 -2 -2 -2 -1 --------- Run | Yrd Mat Min Mat Min Mat Fac Was Fac Low Low Dat Pro Fac Low Low Zio Pro Fac Fac Arm Lab Res Res Qua Sec Acc Total 16103 | 163 864 594 1148 634 1057 1047 546 2034 429 267 201 197 284 372 345 860 292 410 306 877 544 446 359 492 458 877 Wait 1489 | . 179 25 43 15 49 83 125 196 50 47 37 4 7 78 37 38 44 14 1 98 144 43 12 2 . 118 Move 13102 | 118 605 544 947 618 830 826 386 1714 375 205 137 192 244 287 304 802 222 343 288 665 337 338 304 441 443 587 Hop 1 | . . . . . . . . . . . . . . . . . . . 1 . . . . . . . Pick Up 214 | 14 15 8 23 1 19 22 5 20 2 1 2 . 5 2 . 2 . 7 3 14 15 9 4 10 2 9 Fast Attach 76 | . 6 . 4 . 3 5 7 8 . . . 1 2 . . 4 . 3 . 10 4 3 7 . 3 6 Attach 112 | 7 2 . 6 . 4 8 . 8 . 1 . . 1 2 . 2 2 8 3 8 9 14 11 7 2 7 Detach 27 | . . . . . . . 1 . . . . . . . 1 3 . 4 . 5 5 4 2 1 1 . Swap 100 | . 6 2 16 . 13 18 3 10 1 2 4 . 4 1 . 2 2 4 . 5 2 4 . . . 1 Drop 225 | . 16 7 25 . 28 35 13 23 1 1 2 . 6 2 1 4 1 5 1 14 17 10 2 . . 11 Fire 486 | 24 35 8 84 . 111 50 6 4 . . 1 . . . . 2 . 1 . 20 1 8 . . 2 129 Melee 255 | . . . . . . . . 46 . 10 18 . 15 . 2 1 21 21 9 38 10 13 15 31 5 . Ram 2 | . . . . . . . . . . . . . . . . . . . . . . . 2 . . . Kick . | . . . . . . . . . . . . . . . . . . . . . . . . . . . Crush . | . . . . . . . . . . . . . . . . . . . . . . . . . . . Escape Stasis 14 | . . . . . . . . 5 . . . . . . . . . . . . . . . . . 9 Rewire . | . . . . . . . . . . . . . . . . . . . . . . . . . . . Trap . | . . . . . . . . . . . . . . . . . . . . . . . . . . . Miscellaneous . | . . . . . . . . . . . . . . . . . . . . . . . . . . . Route ------- -11/Scrapyard -10/Materials (discovered 6 exits: *Mat x3 / *Min x2 / Sub) -10/Mines (discovered 4 exits: *Mat x2 / [*Exi] / *Sub) -9/Materials (discovered 5 exits: *Mat x3 / *Min / *Sto) -9/Mines (discovered 2 exits: *Mat x2) -8/Materials (discovered 2 exits: *Fac x2) -7/Factory (discovered 4 exits: *Fac x2 / Low x2) -7/Waste -7/Factory (discovered 6 exits: *Fac x4 / *Low x2) -7/Lower Caves -7/Lower Caves -7/Data Miner -6/Proximity Caves -6/Factory (discovered 2 exits: *Low x2) -6/Lower Caves -6/Lower Caves (discovered 2 exits: *Fac / *Zio) -6/Zion -5/Proximity Caves -5/Factory (discovered 3 exits: *Fac / *Upp / Ext) -4/Factory -4/Armory -4/Lab -3/Research -2/Research (discovered 2 exits: *Qua x2) -2/Quarantine (discovered 2 exits: *Sec / [*Frg]) -2/Section 7 -1/Access To Fleet Rendezvous History --------- Turn | Location | Event 9 | -11/Scrapyard | Discovered new exit (range 16) 261 | -11/Scrapyard | Entered Materials 309 | -10/Materials | Build established: Mutant 512 | -10/Materials | Discovered new exit (range 12) 828 | -10/Materials | Discovered new exit (range 16) 918 | -10/Materials | Destroyed 7 combat bots 1246 | -10/Materials | Discovered new exit (range 6) 1253 | -10/Materials | Learned 2 Storage zone layouts 1320 | -10/Materials | Identified exit to Mines 1375 | -10/Materials | Identified exit to Subcaves 1419 | -10/Materials | Loaded intel: 30 non-interactive machine locations 1592 | -10/Materials | Learned Storage emergency access door positions 1715 | -10/Materials | Entered Mines 1716 | -10/Mines | Identified exit to Materials 1727 | -10/Mines | Assisted by bots powering up and referring to "LRC-V3" 1746 | -10/Mines | Core integrity fell below 50% 1888 | -10/Mines | Assembled infested the area 1893 | -10/Mines | Discovered exit to Subcaves (range 7) 1895 | -10/Mines | Learned location of Zion (-6) 1921 | -10/Mines | Met 8R-AWN 1926 | -10/Mines | Learned location of Mines (-9) 2219 | -10/Mines | Learned 4 Materials zone layouts 2469 | -10/Mines | Discovered new exit (range 5) 2649 | -10/Mines | Entered Materials 2649 | -9/Materials | Accompanied by 2 allies 2649 | -9/Materials | Evolved 2 slots: Propulsion x1, Utility x1 2650 | -9/Materials | Identified exit to Storage 2651 | -9/Materials | Identified exit to Materials 2832 | -9/Materials | Discovered new exit (range 9) 3533 | -9/Materials | Build established: Scavenger-Mutant 3711 | -9/Materials | Discovered exit to Materials (range 10) 3909 | -9/Materials | Discovered exit to Materials (range 7) 4097 | -9/Materials | Learned 2 Materials zone layouts 4161 | -9/Materials | Identified exit to Mines 4181 | -9/Materials | Loaded intel: 12 terminal locations 4230 | -9/Materials | Learned 2 Materials zone layouts 4287 | -9/Materials | Learned 4 Recycling zone layouts 4352 | -9/Materials | Loaded intel: 2 repair station locations 4536 | -9/Materials | Entered Mines 4576 | -9/Mines | Learned Materials garrison access intel 4592 | -9/Mines | A weapon hastily lodged in a ceiling crevice suddenly fell to the ground 4872 | -9/Mines | Learned Materials stockpile data 4880 | -9/Mines | Discovered exit to Materials (range 12) 5165 | -9/Mines | Discovered exit to Materials (range 11) 5541 | -9/Mines | Entered Materials 5541 | -8/Materials | Evolved 2 slots: Propulsion x1, Utility x1 5544 | -8/Materials | Loaded intel: 1 garrison access location 6023 | -8/Materials | Discovered new exit (range 16) 6744 | -8/Materials | Discovered new exit (range 15) 7306 | -8/Materials | Entered Factory 7306 | -7/Factory | Evolved 2 slots: Propulsion x1, Utility x1 7374 | -7/Factory | Discovered new exit (range 10) 7645 | -7/Factory | Fabricated Gyrokinetic Inverter (x2) 7888 | -7/Factory | Identified exit to Lower Caves 7908 | -7/Factory | Build established: Hacker-Mutant 8294 | -7/Factory | Discovered new exit (range 15) 8349 | -7/Factory | Sucked down chute 8349 | -7/Factory | Entered Waste 8378 | -7/Waste | Spotted C-40 Crusher 8408 | -7/Waste | Warlord forces began an assault 8430 | -7/Waste | Allies destroyed C-40 Crusher 8506 | -7/Waste | Spotted C-40 Crusher 8527 | -7/Waste | Allies destroyed C-40 Crusher 8530 | -7/Waste | Spotted C-40 Crusher 8536 | -7/Waste | Allies destroyed C-40 Crusher 8552 | -7/Waste | Lost 4 allies 8574 | -7/Waste | Spotted C-40 Crusher 8582 | -7/Waste | Allies destroyed C-40 Crusher 8584 | -7/Waste | Spotted C-40 Crusher 8594 | -7/Waste | Allies destroyed C-40 Crusher 8637 | -7/Waste | Spotted C-40 Crusher 8663 | -7/Waste | Lost 5 allies 8682 | -7/Waste | Discovered new exit (range 12) 8733 | -7/Waste | Entered Factory 8733 | -7/Factory | Accompanied by 8 allies 9102 | -7/Factory | Discovered new exit (range 5) 9206 | -7/Factory | Identified exit to Factory 9241 | -7/Factory | Discovered exit to Factory (range 12) 9281 | -7/Factory | Fabricated Cld. VTOL Module (x1) 9347 | -7/Factory | P-60 Hacker assimilated allied 7Y-EG9(m) 9405 | -7/Factory | Discovered exit to Factory (range 9) 9442 | -7/Factory | Central database locked down 9467 | -7/Factory | Fabricated Antimatter Reactor (x2) 9576 | -7/Factory | System corruption reached 10% 9821 | -7/Factory | Fabricated Point Defense System? 9843 | -7/Factory | Discovered exit to Factory (range 13) 9855 | -7/Factory | Build established: Scientist-Gladiator 10033 | -7/Factory | Entered Lower Caves 10033 | -7/Lower Caves | Accompanied by 2 allies 10339 | -7/Lower Caves | Build established: Gladiator 10391 | -7/Lower Caves | Discovered new exit (range 14) 10404 | -7/Lower Caves | Identified exit to Lower Caves 10413 | -7/Lower Caves | Entered another Lower Caves area 10413 | -7/Lower Caves | Accompanied by 2 allies 10518 | -7/Lower Caves | Discovered new exit (range 14) 10539 | -7/Lower Caves | Entered Data Miner 10539 | -7/Data Miner | Discovered new exit (range 6) 10544 | -7/Data Miner | Met Data Miner 10554 | -7/Data Miner | Learned location of Section 7 (-2) 10554 | -7/Data Miner | Acquired the access code to Warlord's prototype stash 10573 | -7/Data Miner | Received God Mode back door access code from Data Miner 10602 | -7/Data Miner | Destroyed Data Miner 10605 | -7/Data Miner | Found Quantum Router 10606 | -7/Data Miner | Interfaced with the Data Conduit 10609 | -7/Data Miner | Found Ghost Barrier 10662 | -7/Data Miner | Core integrity fell below 50% 10664 | -7/Data Miner | Entered Proximity Caves 10714 | -6/Proximity Caves | Entered Factory 10714 | -6/Factory | Evolved 2 slots: Power x1, Propulsion x1 10715 | -6/Factory | Loaded intel: 331 machine locations 10735 | -6/Factory | Build established: Sprinter 10787 | -6/Factory | Identified exit to Lower Caves 10820 | -6/Factory | Spotted B-75 Beast 10827 | -6/Factory | Entered Lower Caves 10833 | -6/Lower Caves | Learned location of 1 exit from Factory 10925 | -6/Lower Caves | Encountered a Warlord checkpoint 10954 | -6/Lower Caves | Discovered new exit (range 12) 10959 | -6/Lower Caves | Learned Factory stockpile data 10967 | -6/Lower Caves | Identified exit to Lower Caves 10969 | -6/Lower Caves | Entered another Lower Caves area 11000 | -6/Lower Caves | Discovered new exit (range 11) 11002 | -6/Lower Caves | Identified exit to Factory 11024 | -6/Lower Caves | Encountered a Warlord checkpoint 11071 | -6/Lower Caves | Discovered new exit (range 10) 11075 | -6/Lower Caves | Learned location of 1 exit from Factory 11078 | -6/Lower Caves | Identified exit to Zion 11078 | -6/Lower Caves | Entered Zion 11103 | -6/Zion | Discovered new exit (range 16) 11179 | -6/Zion | Learned Factory emergency access door positions 11186 | -6/Zion | Met Imprinter 11203 | -6/Zion | Found CR-A16's Pointy Stick 11241 | -6/Zion | Found Prototype Device 11242 | -6/Zion | Identified Phasing AFG 11278 | -6/Zion | Visited the Megawrench Repair Shop 11278 | -6/Zion | Megawrench repaired 10 parts 11308 | -6/Zion | Identified exit to Proximity Caves 11325 | -6/Zion | Entered Proximity Caves 11358 | -5/Proximity Caves | Spotted B-75 Beast 11374 | -5/Proximity Caves | Destroyed B-75 Beast 11403 | -5/Proximity Caves | Lost 4 parts (2p1n1u) 11529 | -5/Proximity Caves | Attracted the attention of an 0b10 checkpoint 11578 | -5/Proximity Caves | Discovered exit to Factory (range 8) 11588 | -5/Proximity Caves | Entered Factory 11588 | -5/Factory | Evolved 2 slots: Propulsion x1, Utility x1 11589 | -5/Factory | Identified exit to Upper Caves 11590 | -5/Factory | Identified exit to Extension 11590 | -5/Factory | Identified exit to Factory 11593 | -5/Factory | Loaded intel: 313 machine locations 11782 | -5/Factory | Entered another Factory area 11782 | -4/Factory | Evolved 2 slots: Propulsion x1, Utility x1 11783 | -4/Factory | Loaded intel: 332 machine locations 11876 | -4/Factory | Discovered new exit (range 11) 11879 | -4/Factory | Entered Armory 11880 | -4/Armory | Loaded intel: 83 machine locations 11898 | -4/Armory | Found Fusion Bomb Launcher 11976 | -4/Armory | Fabricated O-32 Director? 12014 | -4/Armory | Found Adv. Force Booster 12016 | -4/Armory | Found Adv. Force Booster 12093 | -4/Armory | Energy Cycler disabled 12093 | -4/Armory | Destroyed 7 combat bots 12147 | -4/Armory | Lost 3 parts (1n1u1w) 12299 | -4/Armory | Discovered new exit (range 3) 12300 | -4/Armory | Entered Lab 12311 | -4/Lab | Discovered new exit (range 9) 12316 | -4/Lab | Hidden lab's door opened automatically 12316 | -4/Lab | Sensor layout match revealed 12317 | -4/Lab | Gained access to the hidden lab's interior 12375 | -4/Lab | Found Alien Artifact 12382 | -4/Lab | Found Alien Artifact 12383 | -4/Lab | Identified Integrated Reactor 12383 | -4/Lab | Installed Integrated Reactor, increased core energy generation (+10) 12390 | -4/Lab | Found Alien Artifact 12423 | -4/Lab | Found Prototype Protection 12425 | -4/Lab | Found Quantum Router 12427 | -4/Lab | Found Prototype Energy Gun 12429 | -4/Lab | Found Prototype Energy Gun 12434 | -4/Lab | Decrypted terminal 12434 | -4/Lab | Acquired modification code for an L2 power cell 12438 | -4/Lab | Found Prototype Special Weapon 12441 | -4/Lab | Identified Gui. Remote Datajack 12447 | -4/Lab | Identified Tachyon Dispersion Ray 12449 | -4/Lab | Identified Hyp. EM Gauss Rifle 12452 | -4/Lab | Detected by scanners 12524 | -4/Lab | Hacked A5 with code downloaded from Data Conduit 12525 | -4/Lab | Confronted by A5 12527 | -4/Lab | Destroyed A5 12537 | -4/Lab | Identified Med. Regenerative Plating 12600 | -4/Lab | Decrypted terminal 12600 | -4/Lab | Found Alien Artifact 12600 | -4/Lab | Identified LC Capacitor 12689 | -4/Lab | Entered Research 12689 | -3/Research | Evolved 2 slots: Propulsion x1, Utility x1 12690 | -3/Research | Loaded intel: 92 machine locations 13112 | -3/Research | Intercept squad dispatched 13120 | -3/Research | Spotted Tracker 13123 | -3/Research | Spotted Tracker 13125 | -3/Research | Identified Transdimensional Reconstructor 13125 | -3/Research | Warped through subspace 13136 | -3/Research | Spotted Combat Programmer 13142 | -3/Research | Discovered new exit (range 4) 13143 | -3/Research | Entered another Research area 13143 | -2/Research | Evolved 2 slots: Weapon x2 13144 | -2/Research | Loaded intel: 122 machine locations 13152 | -2/Research | Build established: Hacker-Mutant 13174 | -2/Research | Lost 6 parts (1p3n1u1w) 13190 | -2/Research | Spotted B-90 Cyclops 13206 | -2/Research | Revealed the true nature of CR-A16's Pointy Stick 13209 | -2/Research | Destroyed B-90 Cyclops 13254 | -2/Research | Lost 7 parts (1p5n1u) 13260 | -2/Research | Found Quantum Capacitor 13287 | -2/Research | Identified Core Expander 13287 | -2/Research | Installed Core Expander, added new Utility slot 13313 | -2/Research | Identified exit to Quarantine 13391 | -2/Research | Entered Quarantine 13392 | -2/Quarantine | Loaded intel: 84 machine locations 13399 | -2/Quarantine | Lost 5 parts (1p2n2u) 13481 | -2/Quarantine | Found Sigix Corpse 13491 | -2/Quarantine | Found Sigix Corpse 13500 | -2/Quarantine | Found Transdimensional Reconstructor 13535 | -2/Quarantine | Found Alien Artifact 13551 | -2/Quarantine | Cryocooling Duct disabled 13566 | -2/Quarantine | Ambient heat levels rising (+20) 13566 | -2/Quarantine | Non-combat units ordered to evacuate 13576 | -2/Quarantine | Found Alien Slashing Weapon 13577 | -2/Quarantine | Identified Sigix Broadsword 13599 | -2/Quarantine | Found Spectral Analyzer 13629 | -2/Quarantine | Found Alien Artifact 13645 | -2/Quarantine | System corruption reached 10% 13656 | -2/Quarantine | Core integrity fell below 50% 13660 | -2/Quarantine | Spotted Fortress 13697 | -2/Quarantine | Lost 6 parts (1p1n2u2w) 13707 | -2/Quarantine | Discovered new exit (range 6) 13707 | -2/Quarantine | Discovered new exit (range 7) 13709 | -2/Quarantine | Identified exit to Section 7 13710 | -2/Quarantine | Entered Section 7 13711 | -2/Section 7 | Loaded intel: 119 machine locations 13759 | -2/Section 7 | Warped through subspace 13785 | -2/Section 7 | Lost 3 parts (1n2u) 13789 | -2/Section 7 | Spotted Alpha 7 13790 | -2/Section 7 | Spotted Alpha 7 13802 | -2/Section 7 | Core integrity fell below 20% 13804 | -2/Section 7 | Spotted B-99 Colossus 13818 | -2/Section 7 | Modified the L2 Power Cell with code from the hidden lab 13846 | -2/Section 7 | Spotted Executioner 13846 | -2/Section 7 | Spotted Executioner 13858 | -2/Section 7 | Identified Core Reset Matrix 13858 | -2/Section 7 | Identified Subatomic Replicator 13858 | -2/Section 7 | Used Core Reset Matrix 13859 | -2/Section 7 | Integrated with Sigix Exoskeleton 13862 | -2/Section 7 | Sensed 14 artifacts in vicinity 13891 | -2/Section 7 | Spotted Executioner 13891 | -2/Section 7 | Spotted Executioner 13920 | -2/Section 7 | Spotted Executioner 13930 | -2/Section 7 | Discovered new exit (range 17) 13932 | -2/Section 7 | Spotted B-90 Cyclops 13935 | -2/Section 7 | Entered Access 13935 | -1/Access | Evolved 2 slots: Utility x2 13940 | -1/Access | Emitted hypermatrix ping 13944 | -1/Access | Assembled emerged from beneath the floor 13945 | -1/Access | Assembled emerged from beneath the floor 13970 | -1/Access | Assembled emerged from beneath the floor 13970 | -1/Access | Garrison activated, responded to threat 13993 | -1/Access | Assembled emerged from beneath the floor 14005 | -1/Access | Lost 3 allies 14024 | -1/Access | Assembled emerged from beneath the floor 14057 | -1/Access | Assembled emerged from beneath the floor 14058 | -1/Access | Energy Cycler disabled 14145 | -1/Access | Lost 6 allies 14153 | -1/Access | Assembled emerged from beneath the floor 14163 | -1/Access | Build established: Alien-Sigix 14180 | -1/Access | Discovered new exit (range 17) 14205 | -1/Access | Used Subatomic Replicator to replicate Sigix Corpse 14276 | -1/Access | Scanned by Researcher 14276 | -1/Access | Spotted Investigator 14284 | -1/Access | Destroyed Investigator 14315 | -1/Access | Found Prototype Launcher 14315 | -1/Access | Identified Containment Facilitator 14368 | -1/Access | Sigix Exoskeleton integrity reduced to 80% 14385 | -1/Access | Sigix Exoskeleton integrity reduced to 60% 14408 | -1/Access | Core integrity fell below 50% 14410 | -1/Access | Spotted Striker 14412 | -1/Access | Spotted Striker 14413 | -1/Access | Sigix Exoskeleton integrity reduced to 40% 14431 | -1/Access | Destroyed 10 combat bots 14434 | -1/Access | Sigix Exoskeleton integrity reduced to 20% 14440 | -1/Access | Destroyed Striker 14445 | *** | Heading to fleet! Last Messages --------------- 14432_ K-01 Serf collects debris. 14434_ Exo-853F: "Integrity reduced to 20%, immediate ERK application recommended to prevent critical system failure." 14434_ Quantum Shear penetrates Striker. 14434_ Destroyed Unknown Reactor. 14435_ K-01 Serf collects debris. 14436_ Critical hit (Impale). 14438_ K-01 Serf collects debris. 14438_ Quantum Shear penetrates Striker. 14438_ Striker Prototype Protection severed. 14439_ K-01 Serf collects debris. 14440_ Quantum Shear penetrates Striker. 14440_ Striker destroyed. 14440_ Switching to secondary target: G-73 Enforcer. 14440_ Quantum Shear penetrates Terminal. 14441_ K-01 Serf collects debris. 14443_ Quantum Shear penetrates P-80 Master. 14444_ P-80 Master destroyed. 14445_ K-01 Serf collects debris. [Achievement: Undertaker] Map ----- +----------------------------------------------------+ | ?????????????????????????????????????????????????? | | ?????????????????????????????????????????????????? | | ?????????????????????????????????????????????????? | | ??????????????? ?????????????????????????????????? | | ??????????## # #????????????????????????????? | | ??????? ## # + ?????????????????????????? | | ?????? ## # # ????????????????????????? | | ????" ## # # ??????????????????????? | | ???""" ## # # """Y"?????????????????????? | | ??"""" ## # # """"""" ??????????????????? | | ? """" ##+###+# # #???????????????? | | ? """" # # # ??????????????? | | """" + R ############## ????????????? | | "" # ##################### ! ???????????? | | "" + ##########################??????????? | | # %## ########################?????????? | | # ## ########################?????????? | | ########### ### ### ####################????????? | | ########### ###!#########################???????? | | ########### #######%#####################???????? | | ######### " %T ""==! """" #???????? | | ########### k ""! """" BB ##??????? | | ##########" % % ! !* """" BB ##??????? | | ######### ; m|*!==[ """" ??????? | | ######### ;!! ![%![[[!!%!"" """" ??????? | | ###########!%!![=g==!k=!=X= """" ??????? | | ######### #! !*%!%!*!!*/!/! """" ?????? | | ########### = *![==*%*=[%%= """" BB ##??????? | | ######## " % ig=gg]!!%[!!= """" BB ##??????? | | ######## #[!h h*=g%%=[===! """" ##??? ?? | | ###########=%##!!*!%[####################### # | | ########### ; #=*!=!! ##### ############## ## | | ###########% #####!######################### ## | | # u#### ########## ######## ## | | # ### ########### # ## ## | | + ## ############ " # ## ## | | # ############### e""" # ## ## | | """"" # "%" # """ # ## | | """" # " + " #] ## | | """ " #"### ######### # t # ## | | """"" = "#### ######### # ! + ## | | """"" ##### ######### # # ######## | | """"" ##### ## ] ## #######+## ######## | | ##### ## ## ####### ## ######## | | ! + + ## ####### ## ######## | | ###+######## ## ## ####### ## ######## | | ###### ##! # ###### ###+########### | | ###### ## * # "T | | ###### ## # "" | | " " ###### ##+##+## ############+######### | +----------------------------------------------------+ Best States ------------- Heat Dissipation 127 Coolant Potential 100 Energy Generation 80 Energy Capacity 590 Matter Stores 300 Matter Capacity 300 Sight Range 24 Robot Scan Range 16 Terrain Scan Range 16 Terrain Scan Density 10 Jamming Range 16 Cloak Strength 4 Additional Mass Support 6 Armor Coverage 225 Resistance: KI 50 Resistance: TH 50 Resistance: EX 50 Resistance: EM 50 Resistance: I 50 Resistance: S 50 Resistance: P 50 Propulsion Shielding 90 Melee Speed Boost 40 Evasion (%) 75 Targeting Accuracy 6 Melee Accuracy 12 Target Analysis 8 Core Analysis 6 Recoil Reduction 5 Offensive Hacking 30 Defensive Hacking 70 Authchip Count 2 Item Schematics ----------------- None Robot Schematics ------------------ None Fabricated ------------ Gyrokinetic Inverter | x2 | -7/Factory | Preloaded Cld. VTOL Module | x1 | -7/Factory Antimatter Reactor | x2 | -7/Factory | Preloaded Point Defense System | x2 | -7/Factory | Preloaded O-32 Director | x1 | -4/Armory | Preloaded Repaired ---------- Nothing Studied --------- None Alien Tech Used ----------------- Integrated Reactor LC Capacitor Transdimensional Reconstructor Core Expander Sigix Broadsword Core Reset Matrix Sigix Exoskeleton Sigix Sheargun Subatomic Replicator Achievements -------------- Big Bang Integration Complete Sacrificial Teamwork Undertaker Challenges ------------ None Game ------ Seed MolecularAntisysPrototype Manual? 0 Play Time 02:45:10 Cumulative 607.0 hours Start 2025.12.09 @ 02:59:01 End 2025.12.09 @ 06:52:08 Sessions 2 Manual Loads 0 Difficulty Rogue Special Mode None Game No. 780 Rogue 780 Adventurer 0 Explorer 0 Win Type 2 Total 22 Types 10/1/3/2/2/0/2/2/0/0 Lore% 94 Gallery% 90 Achievement% 78 Wizard Run 0 Options --------- Layout 0 ASCII 0 Keyboard 0 Movement Mouse Keybinds 0 Fullscreen 1 Font 24/Terminus Map View 76x50 Zoom Use 0% Tactical HUD 1 Map Filters NONE Filters NONE Steam 1 RUN: c3bde448-e36f-4438-936f-8a2a594a16a6